lending/lending_fUSD_20241228
["ID","MTS","AMOUNT","RATE_DAILY","PERIOD"]
[346934936,1735396417066,750298.90447432,0.00022999,120]
[346934937,1735396420463,183.6,0.00022999,120]
[346934938,1735396432948,500.0,0.00022999,120]
[346934939,1735396443004,500.0,0.00022999,120]
[346934940,1735396454380,500.0,0.00022999,120]
[346934941,1735396454631,500.0,0.00022999,120]
[346934942,1735396455221,500.0,0.00022999,120]
[346934943,1735396455549,318.38,0.00022999,120]
[346934944,1735396471172,543.25,0.00022999,120]
[346934946,1735396483979,267.87,0.00022999,120]
[346934947,1735396494509,307.83577531,0.00022999,120]
[346934948,1735396500648,502.5,0.00022999,120]
[346934949,1735396508541,1000.0,0.000229,120]
[346934950,1735396544839,500.0,0.00022999,120]
[346934951,1735396552791,500.0,0.00022999,120]
[346934952,1735396554183,456.66088337,0.00022999,120]
[346934953,1735396671184,262.43807896,0.00022999,120]
[346934954,1735396808007,500.0,0.00022999,120]
[346934955,1735396808471,500.0,0.00022999,120]
[346934956,1735396808744,611.92,0.00022999,120]
[346934957,1735396811313,500.0,0.00022999,120]
[346934958,1735396811582,500.0,0.00022999,120]
[346934959,1735396811853,561.79,0.00022999,120]
[346934960,1735396817912,587.36789625,0.00022999,120]
[346934961,1735396823987,500.0,0.00022999,120]
[346934962,1735396824232,500.0,0.00022999,120]
[346934963,1735396824477,500.0,0.00022999,120]
[346934964,1735396824719,500.0,0.00022999,120]
[346934965,1735396824992,465.67267416,0.00022999,120]
[346934966,1735396825180,500.0,0.00022999,120]
[346934967,1735396825686,500.0,0.00022999,120]
[346934968,1735396825760,416.9216517,0.00022999,120]
[346934969,1735396827164,518.35,0.00022999,120]
[346934970,1735396829460,500.0,0.00022999,120]
[346934971,1735396829714,593.69,0.00022999,120]
[346934972,1735396831661,500.0,0.00022999,120]
[346934973,1735396831908,501.5,0.00022999,120]
[346934974,1735396833864,500.0,0.00022999,120]
[346934975,1735396834112,500.0,0.00022999,120]
[346934976,1735396834364,571.42,0.00022999,120]
[346934977,1735396836754,500.0,0.00022999,120]
[346934978,1735396839347,500.0,0.00022999,120]
[346934979,1735396839604,523.48,0.00022999,120]
[346934980,1735396854402,500.0,0.00022999,120]
[346934982,1735396992717,513.865339,0.00022999,120]
[346934983,1735396995557,2000.0,0.00022999,120]
[346934984,1735396999369,511.596944,0.00022999,120]
[346934985,1735397033005,210.755224,0.00022999,120]
[346934987,1735397111637,500.0,0.00022999,120]
[346934988,1735397114384,609.85,0.00022999,120]
[346934989,1735397116749,500.0,0.00022999,120]
[346934990,1735397117333,431.97,0.00022999,120]
[346934991,1735397123229,500.0,0.00022999,120]
[346934992,1735397127134,508.25,0.00022999,120]
[346934993,1735397127380,502.69155989,0.00022999,120]
[346934994,1735397128022,500.0,0.00022999,120]
[346934995,1735397129860,500.0,0.00022999,120]
[346934996,1735397130024,568.15,0.00022999,120]
[346934997,1735397130261,217.98,0.00022999,120]
[346934998,1735397134992,500.0,0.00022999,120]
[346934999,1735397137280,500.0,0.00022999,120]
[346935000,1735397137334,500.0,0.00022999,120]
[346935001,1735397137528,204.76,0.00022999,120]
[346935002,1735397139440,500.0,0.00022999,120]
[346935003,1735397141105,501.77809293,0.00022999,120]
[346935019,1735397309140,500.0,0.00023,120]
[346935020,1735397344346,514.0,0.00023,120]
[346935021,1735397431528,-269.9,0.00010137,2]
[346935022,1735397431538,-736.68,0.00010156,2]
[346935023,1735397431548,-554.30586624,0.00011376,2]
[346935024,1735397431558,-150.0,0.00011452,2]
[346935025,1735397431567,-1386.9389538,0.00011476,2]
[346935026,1735397431577,-737.85517996,0.00011476,2]
[346935027,1735397431588,-649.08377384,0.00011476,2]
[346935028,1735397431598,-1386.9389538,0.00011476,2]
[346935029,1735397431607,-691.33926846,0.00011476,2]
[346935030,1735397431619,-695.59968534,0.00011476,2]
[346935031,1735397431629,-1386.9389538,0.00011476,2]
[346935032,1735397431638,-1386.9389538,0.00011476,2]
[346935033,1735397431648,-1386.9389538,0.00011476,2]
[346935034,1735397431657,-1386.9389538,0.00011476,2]
[346935035,1735397431666,-1386.9389538,0.00011476,2]
[346935036,1735397431676,-1386.9379538,0.00011476,2]
[346935037,1735397431685,-250.0,0.00011874,2]
[346935038,1735397431694,-390.99,0.00011902,2]
[346935039,1735397431704,-500.0,0.00011972,2]
[346935040,1735397431714,-1200.0,0.00011972,2]
[346935041,1735397431723,-162.93,0.00012015,2]
[346935042,1735397431733,-361.962,0.0001235,2]
[346935043,1735397431742,-560.43838824,0.00012364,2]
[346935044,1735397431754,-439.56161176,0.00012364,2]
[346935045,1735397431765,-150.99,0.00012364,2]
[346935046,1735397431774,-1222.34447324,0.00012399,2]
[346935047,1735397431785,-579.1131891,0.00012399,2]
[346935048,1735397431796,-487.25,0.00012399,2]
[346935049,1735397431814,-358.03610195,0.00012399,2]
[346935050,1735397431825,-1196.5,0.00012399,2]
[346935051,1735397431836,-8269.47623571,0.00012399,2]
[346935052,1735397431847,-736.68,0.0001242,2]
[346935053,1735397431857,-200.0,0.00012442,2]
[346935054,1735397431866,-200.0,0.00012447,2]
[346935055,1735397431876,-200.0,0.00012455,2]
[346935056,1735397431885,-857.69592484,0.00012487,2]
[346935057,1735397431896,-8669.55519593,0.00012487,2]
[346935058,1735397431907,-1085.50905,0.00012487,2]
[346935059,1735397431929,-1610.73220499,0.00012487,2]
[346935060,1735397431940,-5143.34758814,0.00012487,2]
[346935061,1735397431952,-12187.1600361,0.00012487,2]
[346935062,1735397431961,-277.565,0.00012711,2]
[346935063,1735397431971,-235.78,0.000128,2]
[346935064,1735397431980,-150.0,0.000128,2]
[346935065,1735397431989,-977.57,0.000128,2]
[346935066,1735397431999,-1000.0,0.000128,2]
[346935067,1735397432008,-150.0,0.000128,2]
[346935068,1735397432018,-24597.23421181,0.00012805,2]
[346935069,1735397432027,-3000.0,0.0001287,2]
[346935070,1735397432036,-1000.0,0.000129,2]
[346935071,1735397432045,-150.0,0.000129,2]
[346935072,1735397432055,-1436.40370657,0.000129,2]
[346935073,1735397432064,-169.78484888,0.000129,2]
[346935074,1735397432074,-960.594,0.00012967,2]
[346935076,1735397432083,-500.74888959,0.00012973,2]
[346935078,1735397432092,-500.41574487,0.00012973,2]
[346935079,1735397432102,-500.0,0.00012973,2]
[346935080,1735397432111,-500.0,0.00012999,2]
[346935081,1735397432121,-376.76227181,0.00012999,2]
[346935082,1735397432130,-500.0,0.00012999,2]
[346935083,1735397432140,-2000.0,0.00012999,2]
[346935084,1735397432149,-2000.0,0.00012999,2]
[346935085,1735397432158,-500.0,0.00012999,2]
[346935086,1735397432168,-769.0,0.00013,2]
[346935087,1735397432177,-797.77299015,0.00013,2]
[346935088,1735397432193,-862.46562628,0.00013,2]
[346935090,1735397432208,-159039.83943899,0.00013,2]
[346935093,1735397432220,-2025.2124572,0.00013,2]
[346935095,1735397432235,-14698.59,0.00013,2]
[346935097,1735397432247,-1138.05576468,0.00013,2]
[346935100,1735397432259,-1230.44480407,0.00013,2]
[346935102,1735397432271,-48058.14667072,0.00013,2]
[346935125,1735397437445,-2875.66659815,0.00013,2]
[346935126,1735397437457,-739.73230278,0.00013,2]
[346935127,1735397437572,-439.75965292,0.00013,2]
[346935128,1735397437585,-893.03835,0.00013,2]
[346935129,1735397437597,-1337.42859041,0.00013,2]
[346935130,1735397437610,-1268.12500435,0.00013,2]
[346935131,1735397437622,-1067.9999996,0.00013,2]
[346935132,1735397437633,-751.41404368,0.00013,2]
[346935176,1735397439500,-1042.36436997,0.00013,2]
[346935177,1735397439512,-500.00608853,0.00013,2]
[346935178,1735397439523,-601.09604373,0.00013,2]
[346935179,1735397439534,-294.766356,0.00013,2]
[346935180,1735397439546,-1086.00001,0.00013,2]
[346935181,1735397439557,-1862.54424,0.00013,2]
[346935182,1735397439568,-3091.44785222,0.00013,2]
[346935183,1735397439579,-469.02788785,0.00013,2]
[346935184,1735397439590,-27072.9239825,0.00013,2]
[346935185,1735397439601,-33558.17119288,0.00013,2]
[346935186,1735397439613,-6905.45253584,0.00013,2]
[346935187,1735397439624,-15347.92244726,0.00013,2]
[346935188,1735397439634,-262299.64381405,0.00013,2]
[346935189,1735397439704,-2149.99923283,0.00013,2]
[346935190,1735397439716,-4128.63986883,0.00013,2]
[346935191,1735397439727,-3933.36463944,0.00013,2]
[346935192,1735397439738,-2288.91045091,0.00013,2]
[346935193,1735397439750,-438.37999999,0.00013,2]
[346935194,1735397439761,-563.992002,0.00013,2]
[346935195,1735397439773,-346.08150003,0.00013,2]
[346935196,1735397439785,-16501.85691754,0.00013,2]
[346935197,1735397439796,-644.82818535,0.00013,2]
[346935198,1735397439807,-305.17650444,0.00013,2]
[346935199,1735397439818,-341.91849725,0.00013,2]
[346935200,1735397439847,-7901.67657273,0.00013,2]
[346935201,1735397439859,-260.44,0.00013,2]
[346935224,1735397442466,-1207.38541534,0.00013,2]
[346935227,1735397442477,-251.579918,0.00013,2]
[346935229,1735397442488,-3930.08425973,0.00013,2]
[346935232,1735397442510,-24010.25,0.00013,2]
[346935234,1735397442522,-2516.16206871,0.00013,2]
[346935235,1735397442535,-1502.70654375,0.00013,2]
[346935236,1735397442546,-578.58314681,0.00013,2]
[346935237,1735397442557,-468.8786624,0.00013,2]
[346935238,1735397442568,-459.4436244,0.00013,2]
[346935239,1735397442579,-578.349716,0.00013,2]
[346935240,1735397442590,-427.42,0.00013,2]
[346935241,1735397442601,-513.4034575,0.00013,2]
[346935242,1735397442612,-567.93,0.00013,2]
[346935243,1735397442624,-475.5,0.00013,2]
[346935244,1735397442635,-602.72741978,0.00013,2]
[346935245,1735397442646,-954.6,0.00013,2]
[346935246,1735397442657,-764.72434,0.00013,2]
[346935247,1735397442669,-316.41236625,0.00013,2]
[346935248,1735397442680,-33188.94314799,0.00013,2]
[346935249,1735397442691,-7714.896462,0.00013,2]
[346935250,1735397442702,-664.717,0.00013,2]
[346935251,1735397442716,-38527.89419866,0.00013,2]
[346935252,1735397442726,-790.0,0.00013,2]
[346935253,1735397442735,-2405.93914991,0.00013,2]
[346935254,1735397442746,-2177.02760022,0.00013,2]
[346935255,1735397442757,-345.52999999,0.00013,2]
[346935256,1735397442768,-4817.62646549,0.00013,2]
[346935257,1735397442780,-383.20020393,0.00013,2]
[346935258,1735397442791,-403385.55951768,0.00013,2]
[346935259,1735397442800,-15094.06784961,0.00013,2]
[346935260,1735397442810,-1463410.56192861,0.00013,2]
[346935261,1735397442819,-145482.45014125,0.00013,2]
[346935262,1735397442830,-15615.30407987,0.00013,2]
[346935263,1735397442841,-20252.04194209,0.00013,2]
[346935264,1735397442852,-24702.30326925,0.00013,2]
[346935267,1735397445480,-564.8167188,0.00011476,2]
[346935268,1735397445493,-1281.46614566,0.00011476,2]
[346935269,1735397445503,-5114.64053805,0.00011476,2]
[346935270,1735397445513,-72749.57374066,0.00013,2]
[346935271,1735397445523,-254.25,0.00013,2]
[346935272,1735397445632,-556.78398471,0.00013,2]
[346935273,1735397445644,-50000.11973999,0.00013,2]
[346935274,1735397445655,-2116.949137,0.00013,2]
[346935275,1735397445666,-279.03799999,0.00013,2]
[346935276,1735397445678,-71229.0,0.00013,2]
[346935277,1735397445689,-175389.60672001,0.00013,2]
[346935278,1735397445701,-740.40033588,0.00013,2]
[346935279,1735397445712,-4919.07120143,0.00013,2]
[346935280,1735397445723,-2946.36745992,0.00013,2]
[346935281,1735397445734,-5810.66036473,0.00013,2]
[346935282,1735397445851,-3950.78810474,0.00013,2]
[346935283,1735397445863,-729.12371714,0.00013,2]
[346935310,1735397545308,942.33,0.00022999,120]
[346935311,1735397545710,942.33,0.00022999,120]
[346935312,1735397545964,942.33,0.00022999,120]
[346935313,1735397546586,942.33,0.00022999,120]
[346935314,1735397546843,942.33,0.00022999,120]
[346935315,1735397547100,942.33,0.00022999,120]
[346935316,1735397547358,942.33,0.00022999,120]
[346935317,1735397547616,942.33,0.00022999,120]
[346935318,1735397547874,942.33,0.00022999,120]
[346935319,1735397548169,942.33,0.00022999,120]
[346935320,1735397548485,942.33,0.00022999,120]
[346935321,1735397548780,942.33,0.00022999,120]
[346935322,1735397549062,942.33,0.00022999,120]
[346935323,1735397549319,942.33,0.00022999,120]
[346935324,1735397549606,942.33,0.00022999,120]
[346935325,1735397549843,942.33,0.00022999,120]
[346935326,1735397550180,942.33,0.00022999,120]
[346935327,1735397550450,942.33,0.00022999,120]
[346935328,1735397550790,942.33,0.00022999,120]
[346935329,1735397551035,942.33,0.00022999,120]
[346935330,1735397551298,942.33,0.00022999,120]
[346935331,1735397551740,942.33,0.00022999,120]
[346935332,1735397551815,942.33,0.00022999,120]
[346935333,1735397552088,942.4335065,0.00022999,120]
[346935334,1735397596672,2000.0,0.00022734,120]
[346935335,1735398001678,500.0,0.00022999,120]
[346935336,1735398002334,500.0,0.00022999,120]
[346935337,1735398003049,500.0,0.00022999,120]
[346935338,1735398003848,500.0,0.00022999,120]
[346935339,1735398006398,500.0,0.00022999,120]
[346935340,1735398009652,500.0,0.00022999,120]
[346935341,1735398010592,500.0,0.00022999,120]
[346935342,1735398011106,500.0,0.00022999,120]
[346935343,1735398011205,500.0,0.00022999,120]
[346935344,1735398011390,162.2,0.00022999,120]
[346935345,1735398012097,500.0,0.00022999,120]
[346935346,1735398013369,500.0,0.00022999,120]
[346935347,1735398013991,501.05415245,0.00022999,120]
[346935348,1735398014668,500.0,0.00022999,120]
[346935349,1735398015300,500.0,0.00022999,120]
[346935350,1735398015855,500.0,0.00022999,120]
[346935351,1735398016203,501.28255983,0.00022999,120]
[346935352,1735398016802,500.0,0.00022999,120]
[346935353,1735398017719,500.0,0.00022999,120]
[346935354,1735398018578,500.0,0.00022999,120]
[346935355,1735398019289,500.0,0.00022999,120]
[346935356,1735398020175,501.17153307,0.00022999,120]
[346935357,1735398020963,500.0,0.00022999,120]
[346935358,1735398021806,500.0,0.00022999,120]
[346935359,1735398022637,500.0,0.00022999,120]
[346935360,1735398022813,500.0,0.00022999,120]
[346935361,1735398024350,500.0,0.00022999,120]
[346935362,1735398024953,500.0,0.00022999,120]
[346935363,1735398025205,207.75,0.00022999,120]
[346935364,1735398028061,500.0,0.00022999,120]
[346935365,1735398029331,500.0,0.00022999,120]
[346935366,1735398034386,500.0,0.00022999,120]
[346935367,1735398036749,500.0,0.00022999,120]
[346935368,1735398037247,501.42431072,0.00022999,120]
[346935369,1735398039250,500.0,0.00022999,120]
[346935370,1735398039502,185.05,0.00022999,120]
[346935371,1735398041638,500.0,0.00022999,120]
[346935372,1735398042744,500.0,0.00022999,120]
[346935373,1735398044494,502.34661057,0.00022999,120]
[346935374,1735398045435,500.0,0.00022999,120]
[346935375,1735398046399,500.0,0.00022999,120]
[346935376,1735398046518,393.23,0.00022999,120]
[346935377,1735398047489,501.44698732,0.00022999,120]
[346935378,1735398049704,648.59,0.00022999,120]
[346935379,1735398050952,500.0,0.00022999,120]
[346935380,1735398051250,500.71536988,0.00022999,120]
[346935381,1735398052561,501.41568677,0.00022999,120]
[346935382,1735398053698,500.0,0.00022999,120]
[346935383,1735398056121,500.0,0.00022999,120]
[346935384,1735398057833,500.0,0.00022999,120]
[346935385,1735398058151,500.0,0.00022999,120]
[346935386,1735398060470,500.0,0.00022999,120]
[346935387,1735398061850,501.2555001,0.00022999,120]
[346935388,1735398062302,500.0,0.00022999,120]
[346935389,1735398064094,501.73132181,0.00022999,120]
[346935390,1735398064962,500.0,0.00022999,120]
[346935391,1735398066285,500.0,0.00022999,120]
[346935392,1735398066416,500.78443954,0.00022999,120]
[346935393,1735398067087,500.0,0.00022999,120]
[346935394,1735398067390,536.29,0.00022999,120]
[346935395,1735398069601,530.43,0.00022999,120]
[346935396,1735398071792,501.05871096,0.00022999,120]
[346935397,1735398071913,500.63077894,0.00022999,120]
[346935398,1735398074024,500.0,0.00022999,120]
[346935399,1735398074086,500.0,0.00022999,120]
[346935400,1735398074153,500.0,0.00022999,120]
[346935401,1735398074286,307.92,0.00022999,120]
[346935402,1735398076261,501.30725404,0.00022999,120]
[346935403,1735398077766,500.97194491,0.00022999,120]
[346935404,1735398080092,501.37773322,0.00022999,120]
[346935405,1735398082054,414.04537615,0.00022999,120]
[346935406,1735398083100,500.89243314,0.00022999,120]
[346935407,1735398084131,500.0,0.00022999,120]
[346935408,1735398088823,500.0,0.00022999,120]
[346935409,1735398090807,500.0,0.00022999,120]
[346935410,1735398093072,603.52,0.00022999,120]
[346935411,1735398094343,500.0,0.00022999,120]
[346935412,1735398099491,502.28342863,0.00022999,120]
[346935413,1735398100096,500.0,0.00022999,120]
[346935414,1735398102448,500.0,0.00022999,120]
[346935415,1735398103048,495.85650434,0.00022999,120]
[346935416,1735398106997,500.0,0.00022999,120]
[346935417,1735398107860,500.0,0.00022999,120]
[346935418,1735398113323,500.0,0.00022999,120]
[346935419,1735398115351,500.0,0.00022999,120]
[346935420,1735398116074,500.0,0.00022999,120]
[346935421,1735398123018,500.0,0.00022999,120]
[346935422,1735398123296,267.14767968,0.00022999,120]
[346935423,1735398123356,500.0,0.00022999,120]
[346935424,1735398124828,614.18,0.00022999,120]
[346935425,1735398127239,500.0,0.00022999,120]
[346935426,1735398130337,500.0,0.00022999,120]
[346935427,1735398130907,344.86,0.00022999,120]
[346935428,1735398131378,500.0,0.00022999,120]
[346935429,1735398132509,500.0,0.00022999,120]
[346935430,1735398139601,501.4466105,0.00022999,120]
[346935431,1735398157019,500.0,0.00022999,120]
[346935432,1735398194369,2000.0,0.00022734,120]
[346935433,1735398263679,-203.3150481,0.00010037,2]
[346935434,1735398269587,49.5849519,0.00010037,2]
[346935436,1735398305948,-830.39482522,0.00010037,2]
[346935437,1735398305977,-879.97977711,0.00010084,2]
[346935460,1735398470017,500.0,0.00022999,120]
[346935461,1735398470282,500.0,0.00022999,120]
[346935462,1735398470789,500.0,0.00022999,120]
[346935463,1735398471042,500.0,0.00022999,120]
[346935464,1735398471330,500.0,0.00022999,120]
[346935465,1735398471612,500.0,0.00022999,120]
[346935466,1735398471879,500.0,0.00022999,120]
[346935467,1735398472136,500.0,0.00022999,120]
[346935468,1735398472400,500.0,0.00022999,120]
[346935469,1735398472689,500.0,0.00022999,120]
[346935470,1735398472950,500.0,0.00022999,120]
[346935471,1735398473323,500.0,0.00022999,120]
[346935472,1735398473584,500.0,0.00022999,120]
[346935473,1735398473835,500.0,0.00022999,120]
[346935474,1735398474628,500.0,0.00022999,120]
[346935475,1735398474891,548.61139492,0.00022999,120]
[346935476,1735398513197,203.3150481,0.00010084,2]
[346935477,1735398521862,406.97745693,0.00022999,120]
[346935482,1735398631719,-163.06,0.00010137,2]
[346935483,1735398631730,-500.0,0.00010137,2]
[346935484,1735398631739,-500.0,0.00010137,2]
[346935485,1735398631751,-251.34800102,0.00010137,2]
[346935486,1735398631761,-738.26,0.00010183,2]
[346935487,1735398631771,-499.52,0.00011258,2]
[346935488,1735398631781,-503.7,0.00011264,2]
[346935489,1735398631790,-250.0,0.00011275,2]
[346935490,1735398631799,-151.0,0.00011284,2]
[346935491,1735398631809,-11305.08540579,0.0001129,2]
[346935492,1735398631854,-290.8,0.0001129,2]
[346935493,1735398631993,-9835.39459421,0.0001129,2]
[346935494,1735398632005,-250.0,0.00011302,2]
[346935495,1735398632016,-2751.0,0.00011507,2]
[346935496,1735398632025,-150.0,0.00011688,2]
[346935497,1735398632035,-150.0,0.00011688,2]
[346935498,1735398632044,-150.0,0.00011688,2]
[346935499,1735398632053,-155.81,0.00011796,2]
[346935500,1735398632063,-2175.36,0.00011885,2]
[346935501,1735398632072,-2175.36,0.00011888,2]
[346935502,1735398632081,-2175.36,0.00011891,2]
[346935503,1735398632090,-2175.36,0.00011894,2]
[346935504,1735398632099,-2175.36,0.00011897,2]
[346935505,1735398632108,-2175.36,0.000119,2]
[346935506,1735398632118,-2175.36,0.00011904,2]
[346935507,1735398632128,-2175.36,0.00011907,2]
[346935508,1735398632137,-2175.36,0.0001191,2]
[346935509,1735398632146,-2175.36,0.00011913,2]
[346935510,1735398632157,-2175.36,0.00011916,2]
[346935511,1735398632167,-2175.36,0.00011919,2]
[346935512,1735398632178,-2175.36,0.00011922,2]
[346935513,1735398632188,-2175.36,0.00011925,2]
[346935514,1735398632197,-2175.36,0.00011929,2]
[346935515,1735398632207,-1000.0,0.0001193,2]
[346935516,1735398632216,-2175.36,0.00011932,2]
[346935517,1735398632225,-2175.36,0.00011935,2]
[346935518,1735398632235,-2175.36,0.00011938,2]
[346935519,1735398632247,-2175.36,0.00011941,2]
[346935520,1735398632256,-2175.36,0.00011944,2]
[346935521,1735398632266,-500.0,0.00011972,2]
[346935523,1735398632275,-1100.0,0.00011972,2]
[346935525,1735398632284,-450.0,0.00012,2]
[346935527,1735398632294,-335.95,0.00012004,2]
[346935529,1735398632303,-1000.0,0.00012053,2]
[346935531,1735398632312,-4524.16149997,0.00012106,2]
[346935533,1735398632321,-150.0,0.00012121,2]
[346935535,1735398632330,-162.69,0.00012123,2]
[346935537,1735398632339,-400.0,0.00012123,2]
[346935539,1735398632348,-200.0,0.0001234,2]
[346935541,1735398632358,-365.92,0.0001235,2]
[346935543,1735398632367,-3888.0,0.0001242,2]
[346935545,1735398632376,-9594.0,0.0001242,2]
[346935547,1735398632386,-150.0,0.0001242,2]
[346935549,1735398632395,-1170.0,0.0001242,2]
[346935551,1735398632404,-1901.07394239,0.00012439,2]
[346935553,1735398632414,-1901.07394239,0.00012442,2]
[346935555,1735398632423,-738.26,0.00012447,2]
[346935557,1735398632432,-1901.07394239,0.00012451,2]
[346935559,1735398632441,-1901.07394239,0.00012457,2]
[346935561,1735398632450,-1901.07394239,0.00012467,2]
[346935563,1735398632461,-1901.07394239,0.00012468,2]
[346935564,1735398632470,-150.0,0.00012553,2]
[346935566,1735398632479,-1268.929,0.00012711,2]
[346935568,1735398632488,-2011.0,0.00012711,2]
[346935571,1735398632499,-633.0,0.00012711,2]
[346935574,1735398632508,-150.291,0.00012711,2]
[346935577,1735398632518,-566.231,0.00012711,2]
[346935580,1735398632527,-1899.0,0.00012711,2]
[346935583,1735398632536,-913.005,0.00012711,2]
[346935586,1735398632546,-739.618,0.00012711,2]
[346935588,1735398632556,-821.0,0.00012711,2]
[346935590,1735398632565,-3771.0,0.00012711,2]
[346935592,1735398632574,-536.0,0.00012711,2]
[346935594,1735398632583,-3683.0,0.00012711,2]
[346935596,1735398632592,-153.0,0.0001285,2]
[346935598,1735398632602,-153.0,0.00012851,2]
[346935600,1735398632611,-253.0,0.0001287,2]
[346935602,1735398632620,-280.24438677,0.00012892,2]
[346935604,1735398632629,-643.99690965,0.000129,2]
[346935606,1735398632639,-172.15,0.00012951,2]
[346935608,1735398632648,-500.0,0.00012973,2]
[346935610,1735398632658,-500.0,0.00012973,2]
[346935612,1735398632667,-500.0,0.00012973,2]
[346935614,1735398632676,-1195.311,0.00012973,2]
[346935616,1735398632685,-162.431,0.00012973,2]
[346935618,1735398632694,-150.0,0.00012986,2]
[346935620,1735398632703,-20686.96303027,0.0001299,2]
[346935623,1735398632716,-24590.95120138,0.0001299,2]
[346935625,1735398632727,-600.0,0.0001299,2]
[346935627,1735398632738,-439.8200001,0.0001299,2]
[346935629,1735398632750,-1559.3669999,0.0001299,2]
[346935631,1735398632762,-34995.93381571,0.0001299,2]
[346935637,1735398632810,-3320.7,0.0001299,2]
[346935639,1735398632821,-4615.6,0.0001299,2]
[346935641,1735398632832,-2301.0,0.0001299,2]
[346935644,1735398632847,-51671.6916337,0.0001299,2]
[346935646,1735398632857,-2000.0,0.00012999,2]
[346935648,1735398632867,-2000.0,0.00012999,2]
[346935650,1735398632876,-2000.0,0.00012999,2]
[346935651,1735398632886,-2000.0,0.00012999,2]
[346935653,1735398632895,-2000.0,0.00012999,2]
[346935655,1735398632904,-500.0,0.00012999,2]
[346935658,1735398632920,-798.0,0.00013,2]
[346935660,1735398632929,-3609.55190761,0.00013,2]
[346935662,1735398632938,-122866.75645869,0.00013,2]
[346935664,1735398632949,-400.67,0.00013,2]
[346935666,1735398632961,-970.0,0.00013,2]
[346935668,1735398632972,-736065.09833847,0.00013,2]
[346935670,1735398632981,-1105394.67326667,0.00013,2]
[346935698,1735398634397,500.0,0.00022999,120]
[346935699,1735398635683,500.0,0.00022999,120]
[346935702,1735398637752,500.0,0.00022999,120]
[346935703,1735398637792,-310.24010705,0.0001242,2]
[346935704,1735398637915,500.0,0.00022999,120]
[346935705,1735398638026,-791.75989295,0.0001242,2]
[346935706,1735398638037,-1878.09275705,0.00013,2]
[346935707,1735398638048,-29333.30144401,0.00013,2]
[346935708,1735398638170,467.97,0.00022999,120]
[346935709,1735398638192,-1449.71944717,0.00013,2]
[346935759,1735398638780,500.0,0.00022999,120]
[346935791,1735398639629,500.0,0.00022999,120]
[346935793,1735398639886,-509.08670023,0.00013,2]
[346935794,1735398639898,-231.91329977,0.00013,2]
[346935795,1735398639910,-2133.41670025,0.00013,2]
[346935796,1735398639932,-46622.24623273,0.00013,2]
[346935797,1735398639947,-823.375,0.00013,2]
[346935798,1735398639959,-784.87126048,0.00013,2]
[346935799,1735398640161,500.0,0.00022999,120]
[346935804,1735398641270,317.67784069,0.00022999,120]
[346935805,1735398641540,620.65,0.00022999,120]